fUSD/lending_fUSD_20241013
["ID","MTS","AMOUNT","RATE_DAILY","PERIOD"]
[340188629,1728798421484,-500.0,0.00010958,2]
[340188630,1728798421507,-522.29798701,0.00010958,2]
[340188631,1728798421529,-623.31786952,0.00010958,2]
[340188632,1728798421554,-518.49409801,0.00010958,2]
[340188633,1728798421577,-500.0,0.00010958,2]
[340188634,1728798421706,-500.0,0.00010958,2]
[340188635,1728798421740,-514.66134941,0.00010958,2]
[340188636,1728798421764,-537.51323933,0.00010958,2]
[340188637,1728798421786,-500.0,0.00010958,2]
[340188638,1728798421813,-536.12545391,0.00010958,2]
[340188639,1728798421845,-552.74369578,0.00010958,2]
[340188640,1728798421871,-549.76990647,0.00010958,2]
[340188641,1728798421894,-150.14,0.00010959,2]
[340188642,1728798421918,-156.69,0.00010959,2]
[340188643,1728798421941,-155.22,0.00010959,2]
[340188644,1728798421964,-250.0,0.00010959,2]
[340188645,1728798421987,-169.1,0.00010959,2]
[340188646,1728798422009,-150.0,0.00010959,2]
[340188647,1728798422033,-161.876,0.00010959,2]
[340188648,1728798422055,-163.28083337,0.00010959,2]
[340188649,1728798422078,-500.0,0.00010973,2]
[340188650,1728798422100,-500.60737579,0.00010973,2]
[340188651,1728798422122,-1218.25,0.00010978,2]
[340188652,1728798422145,-5107.57,0.00010978,2]
[340188653,1728798422167,-469.73,0.00010978,2]
[340188654,1728798422190,-499.99,0.00010978,2]
[340188655,1728798422212,-449.0,0.00010978,2]
[340188656,1728798422234,-201.246,0.00010978,2]
[340188657,1728798422257,-626.0,0.00010978,2]
[340188658,1728798422278,-168.824,0.00010978,2]
[340188659,1728798422301,-1751.6464746,0.00010994,2]
[340188660,1728798422324,-251.1555452,0.00010994,2]
[340188661,1728798422346,-334.0473081,0.00010994,2]
[340188662,1728798422371,-792.11,0.00010996,2]
[340188663,1728798422393,-500.0,0.00010996,2]
[340188664,1728798422414,-500.0,0.00010996,2]
[340188665,1728798422436,-792.35,0.00010996,2]
[340188666,1728798422459,-500.0,0.00010996,2]
[340188667,1728798422484,-500.0,0.00010996,2]
[340188668,1728798422507,-500.0,0.00010996,2]
[340188669,1728798422528,-500.0,0.00010996,2]
[340188670,1728798422550,-500.0,0.00010996,2]
[340188671,1728798422572,-500.0,0.00010996,2]
[340188672,1728798422594,-198.74307129,0.00010997,2]
[340188673,1728798422615,-386.67049726,0.00010997,2]
[340188674,1728798422636,-500.0,0.00010997,2]
[340188675,1728798422657,-500.0,0.00010997,2]
[340188676,1728798422678,-500.0,0.00010997,2]
[340188677,1728798422699,-484.20787353,0.00010997,2]
[340188678,1728798422722,-500.0,0.00010997,2]
[340188679,1728798422743,-500.0,0.00010997,2]
[340188680,1728798422763,-547.4,0.00010997,2]
[340188681,1728798422784,-151.0,0.00010997,2]
[340188682,1728798422808,-569.83589566,0.00010997,2]
[340188683,1728798422828,-514.0308751,0.00010997,2]
[340188684,1728798422849,-387.18935952,0.00010997,2]
[340188685,1728798422870,-500.0,0.00010997,2]
[340188686,1728798422891,-414.25838488,0.00010997,2]
[340188687,1728798422912,-251.50731952,0.00010997,2]
[340188688,1728798422934,-408.30926808,0.00010997,2]
[340188689,1728798422955,-500.0,0.00010997,2]
[340188690,1728798422976,-500.0,0.00010997,2]
[340188691,1728798422998,-500.0,0.00010997,2]
[340188692,1728798423019,-500.0,0.00010997,2]
[340188693,1728798423042,-500.0,0.00010997,2]
[340188694,1728798423065,-500.0,0.00010997,2]
[340188695,1728798423088,-500.0,0.00010997,2]
[340188696,1728798423109,-5661.42,0.00010997,2]
[340188697,1728798423130,-500.0,0.00010997,2]
[340188698,1728798423152,-409.69791517,0.00010997,2]
[340188699,1728798423174,-469.72500012,0.00010997,2]
[340188700,1728798423197,-500.0,0.00010997,2]
[340188701,1728798423218,-500.0,0.00010997,2]
[340188702,1728798423239,-5841.51572648,0.00010997,2]
[340188703,1728798423260,-360.53924971,0.00010997,2]
[340188704,1728798423282,-500.0,0.00010997,2]
[340188705,1728798423304,-500.0,0.00010997,2]
[340188706,1728798423326,-500.0,0.00010997,2]
[340188707,1728798423349,-500.0,0.00010997,2]
[340188708,1728798423370,-500.0,0.00010997,2]
[340188709,1728798423391,-500.0,0.00010997,2]
[340188710,1728798423413,-500.0,0.00010997,2]
[340188711,1728798423434,-500.0,0.00010997,2]
[340188712,1728798423456,-311.24959101,0.00010997,2]
[340188713,1728798423476,-500.0,0.00010997,2]
[340188714,1728798423498,-186.57462641,0.00010997,2]
[340188715,1728798423519,-179.66749179,0.00010997,2]
[340188716,1728798423539,-500.0,0.00010997,2]
[340188717,1728798423562,-500.0,0.00010997,2]
[340188718,1728798423583,-500.0,0.00010997,2]
[340188719,1728798423605,-500.0,0.00010997,2]
[340188720,1728798423626,-928.07,0.00010997,2]
[340188721,1728798423647,-500.0,0.00010997,2]
[340188722,1728798423667,-196.31170594,0.00010997,2]
[340188723,1728798423688,-500.0,0.00010997,2]
[340188724,1728798423711,-500.0,0.00010997,2]
[340188725,1728798423731,-500.0,0.00010997,2]
[340188726,1728798423754,-500.0,0.00010997,2]
[340188727,1728798423775,-500.0,0.00010997,2]
[340188728,1728798423795,-165.2581055,0.00010997,2]
[340188729,1728798423817,-500.0,0.00010998,2]
[340188730,1728798423838,-500.0,0.00010998,2]
[340188731,1728798423858,-500.0,0.00010998,2]
[340188732,1728798423879,-500.0,0.00010998,2]
[340188733,1728798423899,-500.0,0.00010998,2]
[340188734,1728798423925,-500.0,0.00010998,2]
[340188735,1728798423947,-500.0,0.00010998,2]
[340188736,1728798423968,-500.0,0.00010998,2]
[340188737,1728798423990,-500.0,0.00010998,2]
[340188738,1728798424012,-500.0,0.00010998,2]
[340188739,1728798424034,-500.0,0.00010998,2]
[340188740,1728798424056,-506.28565395,0.00010998,2]
[340188741,1728798424082,-505.24042994,0.00010998,2]
[340188742,1728798424104,-500.0,0.00010998,2]
[340188743,1728798424127,-500.0,0.00010998,2]
[340188744,1728798424150,-548.67829126,0.00010998,2]
[340188745,1728798424173,-505.69277984,0.00010998,2]
[340188746,1728798424197,-506.92886311,0.00010998,2]
[340188747,1728798424219,-206.69246373,0.00010998,2]
[340188748,1728798424241,-201.921331,0.00010998,2]
[340188749,1728798424265,-503.00278862,0.00010998,2]
[340188750,1728798424287,-500.0,0.00010998,2]
[340188751,1728798424311,-500.0,0.00010998,2]
[340188752,1728798424333,-625.10911905,0.00010998,2]
[340188753,1728798424356,-500.0,0.00010998,2]
[340188754,1728798424377,-505.30962892,0.00010998,2]
[340188755,1728798424530,-500.0,0.00010998,2]
[340188756,1728798424570,-594.70699411,0.00010998,2]
[340188757,1728798424592,-517.37364537,0.00010998,2]
[340188758,1728798424614,-502.44992345,0.00010998,2]
[340188759,1728798424636,-547.4,0.00010998,2]
[340188760,1728798424658,-500.0,0.00010998,2]
[340188761,1728798424679,-503.95777733,0.00010998,2]
[340188762,1728798424701,-151.0,0.00010998,2]
[340188763,1728798424727,-151.0,0.00010998,2]
[340188764,1728798424748,-151.0,0.00010998,2]
[340188765,1728798424771,-151.0,0.00010998,2]
[340188766,1728798424792,-151.0,0.00010998,2]
[340188767,1728798424820,-151.0,0.00010998,2]
[340188768,1728798424841,-151.0,0.00010998,2]
[340188769,1728798424863,-151.0,0.00010998,2]
[340188770,1728798424885,-500.0,0.00010998,2]
[340188771,1728798424907,-500.0,0.00010998,2]
[340188772,1728798424930,-500.0,0.00010998,2]
[340188773,1728798424954,-500.0,0.00010998,2]
[340188774,1728798424976,-283.62782191,0.00010998,2]
[340188775,1728798424998,-500.0,0.00010998,2]
[340188776,1728798425021,-256.95454842,0.00010998,2]
[340188777,1728798425043,-500.0,0.00010998,2]
[340188778,1728798425065,-5661.42,0.00010998,2]
[340188779,1728798425088,-500.0,0.00010998,2]
[340188780,1728798425110,-500.0,0.00010998,2]
[340188781,1728798425132,-500.0,0.00010998,2]
[340188782,1728798425155,-500.0,0.00010998,2]
[340188783,1728798425176,-500.0,0.00010998,2]
[340188784,1728798425198,-500.0,0.00010998,2]
[340188785,1728798425220,-500.0,0.00010998,2]
[340188786,1728798425241,-500.0,0.00010998,2]
[340188787,1728798425262,-500.0,0.00010998,2]
[340188788,1728798425284,-607.0109941,0.00010998,2]
[340188789,1728798425305,-500.0,0.00010998,2]
[340188790,1728798425326,-792.11,0.00010998,2]
[340188791,1728798425347,-500.0,0.00010998,2]
[340188792,1728798425367,-500.0,0.00010998,2]
[340188793,1728798425388,-500.0,0.00010998,2]
[340188794,1728798425409,-500.0,0.00010998,2]
[340188795,1728798425431,-500.0,0.00010998,2]
[340188796,1728798425456,-792.35,0.00010998,2]
[340188797,1728798425478,-500.0,0.00010998,2]
[340188798,1728798425499,-566.67959613,0.00010998,2]
[340188799,1728798425519,-928.07,0.00010998,2]
[340188800,1728798425541,-417.48005109,0.00010998,2]
[340188801,1728798425564,-500.0,0.00010998,2]
[340188802,1728798425587,-294.78994772,0.00010998,2]
[340188803,1728798425610,-198.06116769,0.00010998,2]
[340188804,1728798425633,-500.0,0.00010998,2]
[340188805,1728798425653,-603.09831761,0.00010998,2]
[340188806,1728798425674,-500.0,0.00010998,2]
[340188807,1728798425694,-268.57692999,0.00010998,2]
[340188808,1728798425736,-500.0,0.00010998,2]
[340188809,1728798425761,-355.56888093,0.00010998,2]
[340188810,1728798425782,-285.63232102,0.00010998,2]
[340188811,1728798425805,-500.0,0.00010998,2]
[340188812,1728798425828,-157.92293222,0.00010998,2]
[340188813,1728798425854,-500.0,0.00010998,2]
[340188814,1728798425875,-400.99970503,0.00010998,2]
[340188815,1728798425897,-215.01,0.00010998,2]
[340188816,1728798425919,-239.3237224,0.00010999,2]
[340188817,1728798425941,-500.0,0.00010999,2]
[340188818,1728798425966,-500.0,0.00010999,2]
[340188819,1728798425988,-500.0,0.00010999,2]
[340188820,1728798426009,-500.0,0.00010999,2]
[340188821,1728798426030,-500.0,0.00010999,2]
[340188822,1728798426054,-500.0,0.00010999,2]
[340188823,1728798426079,-501.75255509,0.00010999,2]
[340188824,1728798426101,-500.0,0.00010999,2]
[340188825,1728798426124,-500.0,0.00010999,2]
[340188826,1728798426147,-503.74366625,0.00010999,2]
[340188827,1728798426168,-500.0,0.00010999,2]
[340188828,1728798426191,-500.0,0.00010999,2]
[340188829,1728798426215,-500.0,0.00010999,2]
[340188830,1728798426236,-500.0,0.00010999,2]
[340188831,1728798426259,-500.0,0.00010999,2]
[340188832,1728798426280,-500.0,0.00010999,2]
[340188833,1728798426304,-500.0,0.00010999,2]
[340188834,1728798426327,-500.0,0.00010999,2]
[340188835,1728798426349,-506.44128046,0.00010999,2]
[340188836,1728798426371,-500.0,0.00010999,2]
[340188837,1728798426393,-500.0,0.00010999,2]
[340188838,1728798426415,-500.0,0.00010999,2]
[340188839,1728798426435,-500.0,0.00010999,2]
[340188840,1728798426456,-500.0,0.00010999,2]
[340188841,1728798426481,-500.0,0.00010999,2]
[340188842,1728798426503,-500.0,0.00010999,2]
[340188843,1728798426524,-500.0,0.00010999,2]
[340188844,1728798426545,-500.0,0.00010999,2]
[340188845,1728798426573,-500.0,0.00010999,2]
[340188846,1728798426594,-417.96483823,0.00010999,2]
[340188847,1728798426615,-500.0,0.00010999,2]
[340188848,1728798426635,-319.05333057,0.00010999,2]
[340188849,1728798426656,-547.4,0.00010999,2]
[340188850,1728798426678,-547.4,0.00010999,2]
[340188851,1728798426705,-547.4,0.00010999,2]
[340188852,1728798426732,-547.4,0.00010999,2]
[340188853,1728798426756,-547.4,0.00010999,2]
[340188854,1728798426779,-547.4,0.00010999,2]
[340188855,1728798426806,-547.4,0.00010999,2]
[340188856,1728798426827,-547.4,0.00010999,2]
[340188857,1728798426852,-547.4,0.00010999,2]
[340188858,1728798426875,-547.4,0.00010999,2]
[340188859,1728798426897,-547.4,0.00010999,2]
[340188860,1728798426919,-547.4,0.00010999,2]
[340188861,1728798426941,-547.4,0.00010999,2]
[340188862,1728798426962,-547.4,0.00010999,2]
[340188863,1728798426982,-547.4,0.00010999,2]
[340188864,1728798427003,-547.4,0.00010999,2]
[340188865,1728798427024,-547.4,0.00010999,2]
[340188866,1728798427051,-547.4,0.00010999,2]
[340188867,1728798427071,-547.4,0.00010999,2]
[340188868,1728798427095,-547.5545459,0.00010999,2]
[340188869,1728798427119,-151.0,0.00010999,2]
[340188870,1728798427142,-151.0,0.00010999,2]
[340188871,1728798427271,-151.0,0.00010999,2]
[340188872,1728798427298,-151.0,0.00010999,2]
[340188873,1728798427321,-151.0,0.00010999,2]
[340188874,1728798427344,-151.0,0.00010999,2]
[340188875,1728798427368,-151.0,0.00010999,2]
[340188876,1728798427390,-151.0,0.00010999,2]
[340188877,1728798427413,-151.0,0.00010999,2]
[340188878,1728798427435,-500.0,0.00010999,2]
[340188879,1728798427457,-500.0,0.00010999,2]
[340188880,1728798427480,-500.0,0.00010999,2]
[340188881,1728798427503,-565.92493902,0.00010999,2]
[340188882,1728798427524,-500.0,0.00010999,2]
[340188883,1728798427547,-500.0,0.00010999,2]
[340188884,1728798427570,-500.0,0.00010999,2]
[340188885,1728798427591,-500.0,0.00010999,2]
[340188886,1728798427613,-500.0,0.00010999,2]
[340188887,1728798427636,-499.72831742,0.00010999,2]
[340188888,1728798427658,-500.0,0.00010999,2]
[340188889,1728798427680,-500.0,0.00010999,2]
[340188890,1728798427703,-500.0,0.00010999,2]
[340188891,1728798427730,-513.10248176,0.00010999,2]
[340188892,1728798427753,-613.33909275,0.00010999,2]
[340188893,1728798427775,-500.0,0.00010999,2]
[340188894,1728798427799,-250.20057534,0.00010999,2]
[340188895,1728798427824,-498.96228486,0.00010999,2]
[340188896,1728798427846,-5661.42,0.00010999,2]
[340188897,1728798427868,-5661.42,0.00010999,2]
[340188898,1728798427891,-5661.42,0.00010999,2]
[340188899,1728798427913,-5661.42,0.00010999,2]
[340188900,1728798427936,-500.0,0.00010999,2]
[340188901,1728798427958,-5661.42,0.00010999,2]
[340188902,1728798427980,-500.0,0.00010999,2]
[340188903,1728798428002,-5661.42,0.00010999,2]
[340188904,1728798428024,-500.0,0.00010999,2]
[340188905,1728798428046,-5661.42,0.00010999,2]
[340188906,1728798428068,-500.0,0.00010999,2]
[340188907,1728798428091,-5661.42,0.00010999,2]
[340188908,1728798428113,-500.0,0.00010999,2]
[340188909,1728798428136,-5661.42,0.00010999,2]
[340188910,1728798428158,-500.0,0.00010999,2]
[340188911,1728798428180,-5661.42,0.00010999,2]
[340188912,1728798428203,-5661.42,0.00010999,2]
[340188913,1728798428226,-168.64504856,0.00010999,2]
[340188914,1728798428249,-5661.42,0.00010999,2]
[340188915,1728798428272,-5661.42,0.00010999,2]
[340188916,1728798428296,-5661.42,0.00010999,2]
[340188917,1728798428320,-5661.42,0.00010999,2]
[340188918,1728798428344,-5661.42,0.00010999,2]
[340188919,1728798428366,-5661.42,0.00010999,2]
[340188920,1728798428388,-5661.42,0.00010999,2]
[340188921,1728798428413,-5661.42,0.00010999,2]
[340188922,1728798428437,-5661.44283497,0.00010999,2]
[340188923,1728798428459,-500.0,0.00010999,2]
[340188924,1728798428481,-500.0,0.00010999,2]
[340188925,1728798428503,-500.0,0.00010999,2]
[340188926,1728798428524,-500.0,0.00010999,2]
[340188927,1728798428550,-500.0,0.00010999,2]
[340188928,1728798428578,-500.0,0.00010999,2]
[340188929,1728798428599,-500.0,0.00010999,2]
[340188930,1728798428621,-500.0,0.00010999,2]
[340188931,1728798428641,-500.0,0.00010999,2]
[340188932,1728798428662,-500.0,0.00010999,2]
[340188933,1728798428684,-500.0,0.00010999,2]
[340188934,1728798428706,-539.05188986,0.00010999,2]
[340188935,1728798428730,-542.63939807,0.00010999,2]
[340188936,1728798428754,-500.0,0.00010999,2]
[340188937,1728798428775,-500.0,0.00010999,2]
[340188938,1728798428797,-504.807008,0.00010999,2]
[340188939,1728798428820,-500.0,0.00010999,2]
[340188940,1728798428841,-500.0,0.00010999,2]
[340188941,1728798428862,-500.0,0.00010999,2]
[340188942,1728798428884,-500.0,0.00010999,2]
[340188943,1728798428906,-500.0,0.00010999,2]
[340188944,1728798428927,-500.0,0.00010999,2]
[340188945,1728798428950,-500.0,0.00010999,2]
[340188946,1728798428971,-327.85253131,0.00010999,2]
[340188947,1728798428992,-500.0,0.00010999,2]
[340188948,1728798429016,-266.2071995,0.00010999,2]
[340188949,1728798429037,-565.04308458,0.00010999,2]
[340188950,1728798429059,-500.0,0.00010999,2]
[340188951,1728798429081,-500.0,0.00010999,2]
[340188952,1728798429103,-443.56056974,0.00010999,2]
[340188953,1728798429124,-500.0,0.00010999,2]
[340188954,1728798429145,-500.0,0.00010999,2]
[340188955,1728798429166,-500.0,0.00010999,2]
[340188956,1728798429187,-286.10473687,0.00010999,2]
[340188957,1728798429208,-500.0,0.00010999,2]
[340188958,1728798429230,-500.0,0.00010999,2]
[340188959,1728798429253,-500.0,0.00010999,2]
[340188960,1728798429274,-598.10760303,0.00010999,2]
[340188961,1728798429295,-792.11,0.00010999,2]
[340188962,1728798429317,-792.11,0.00010999,2]
[340188963,1728798429338,-792.11,0.00010999,2]
[340188964,1728798429359,-792.11,0.00010999,2]
[340188965,1728798429380,-792.11,0.00010999,2]
[340188966,1728798429401,-792.11,0.00010999,2]
[340188967,1728798429422,-792.11,0.00010999,2]
[340188968,1728798429443,-792.11,0.00010999,2]
[340188969,1728798429464,-792.11,0.00010999,2]
[340188970,1728798429485,-792.11,0.00010999,2]
[340188971,1728798429506,-792.11,0.00010999,2]
[340188972,1728798429526,-792.11,0.00010999,2]
[340188973,1728798429547,-792.11,0.00010999,2]
[340188974,1728798429569,-792.11,0.00010999,2]
[340188975,1728798429590,-792.11,0.00010999,2]
[340188976,1728798429611,-792.11,0.00010999,2]
[340188977,1728798429633,-792.11,0.00010999,2]
[340188978,1728798429654,-792.11,0.00010999,2]
[340188979,1728798429676,-792.11,0.00010999,2]
[340188980,1728798429697,-792.28400977,0.00010999,2]
[340188981,1728798429721,-500.0,0.00010999,2]
[340188982,1728798429742,-503.5012873,0.00010999,2]
[340188983,1728798429877,-500.0,0.00010999,2]
[340188984,1728798429902,-500.0,0.00010999,2]
[340188985,1728798429924,-500.0,0.00010999,2]
[340188986,1728798429947,-314.75865175,0.00010999,2]
[340188987,1728798429970,-569.18453367,0.00010999,2]
[340188988,1728798429993,-500.0,0.00010999,2]
[340188989,1728798430016,-500.0,0.00010999,2]
[340188990,1728798430039,-289.95362911,0.00010999,2]
[340188991,1728798430062,-500.0,0.00010999,2]
[340188992,1728798430084,-500.0,0.00010999,2]
[340188993,1728798430105,-500.0,0.00010999,2]
[340188994,1728798430127,-500.0,0.00010999,2]
[340188995,1728798430149,-500.0,0.00010999,2]
[340188996,1728798430171,-286.81264972,0.00010999,2]
[340188997,1728798430194,-792.35,0.00010999,2]
[340188998,1728798430215,-792.35,0.00010999,2]
[340188999,1728798430237,-792.35,0.00010999,2]
[340189000,1728798430259,-792.35,0.00010999,2]
[340189001,1728798430281,-792.35,0.00010999,2]
[340189002,1728798430303,-792.35,0.00010999,2]
[340189003,1728798430328,-792.35,0.00010999,2]
[340189004,1728798430350,-792.35,0.00010999,2]
[340189005,1728798430372,-792.35,0.00010999,2]
[340189006,1728798430394,-792.35,0.00010999,2]
[340189007,1728798430416,-792.35,0.00010999,2]
[340189008,1728798430438,-792.35,0.00010999,2]
[340189009,1728798430466,-792.35,0.00010999,2]
[340189010,1728798430496,-792.35,0.00010999,2]
[340189011,1728798430520,-792.35,0.00010999,2]
[340189012,1728798430544,-792.35,0.00010999,2]
[340189013,1728798430569,-792.35,0.00010999,2]
[340189014,1728798430591,-792.35,0.00010999,2]
[340189015,1728798430614,-792.35,0.00010999,2]
[340189016,1728798430638,-792.52093905,0.00010999,2]
[340189017,1728798430661,-500.0,0.00010999,2]
[340189018,1728798430684,-500.0,0.00010999,2]
[340189019,1728798430710,-556.93447079,0.00010999,2]
[340189020,1728798430734,-928.07,0.00010999,2]
[340189021,1728798430757,-928.07,0.00010999,2]
[340189022,1728798430779,-928.07,0.00010999,2]
[340189023,1728798430803,-928.07,0.00010999,2]
[340189024,1728798430826,-928.07,0.00010999,2]
[340189025,1728798430848,-928.07,0.00010999,2]
[340189026,1728798430870,-928.07,0.00010999,2]
[340189027,1728798430892,-928.07,0.00010999,2]
[340189028,1728798430914,-928.07,0.00010999,2]
[340189029,1728798430937,-928.07,0.00010999,2]
[340189030,1728798430960,-928.07,0.00010999,2]
[340189031,1728798430983,-928.07,0.00010999,2]
[340189032,1728798431005,-928.07,0.00010999,2]
[340189033,1728798431030,-928.07,0.00010999,2]
[340189034,1728798431053,-928.07,0.00010999,2]
[340189035,1728798431075,-928.07,0.00010999,2]
[340189036,1728798431097,-928.07,0.00010999,2]
[340189037,1728798431120,-928.07,0.00010999,2]
[340189038,1728798431142,-928.07,0.00010999,2]
[340189039,1728798431165,-928.23817881,0.00010999,2]
[340189040,1728798431187,-500.0,0.00010999,2]
[340189041,1728798431208,-500.0,0.00010999,2]
[340189042,1728798431230,-500.0,0.00010999,2]
[340189043,1728798431250,-500.0,0.00010999,2]
[340189044,1728798431271,-312.40187461,0.00010999,2]
[340189045,1728798431293,-403.53193614,0.00010999,2]
[340189046,1728798431316,-500.0,0.00010999,2]
[340189047,1728798431337,-500.0,0.00010999,2]
[340189048,1728798431358,-500.0,0.00010999,2]
[340189049,1728798431379,-402.27965787,0.00010999,2]
[340189050,1728798431400,-192.12268077,0.00010999,2]
[340189051,1728798431421,-283.10075946,0.00010999,2]
[340189052,1728798431442,-500.0,0.00010999,2]
[340189053,1728798431464,-500.0,0.00010999,2]
[340189054,1728798431486,-500.0,0.00010999,2]
[340189055,1728798431508,-500.0,0.00010999,2]
[340189056,1728798431530,-500.0,0.00010999,2]
[340189057,1728798431551,-500.0,0.00010999,2]
[340189058,1728798431572,-500.0,0.00010999,2]
[340189059,1728798431593,-500.0,0.00010999,2]
[340189060,1728798431614,-500.0,0.00010999,2]
[340189061,1728798431635,-500.0,0.00010999,2]
[340189062,1728798431656,-500.0,0.00010999,2]
[340189063,1728798431676,-500.0,0.00010999,2]
[340189064,1728798431697,-500.0,0.00010999,2]
[340189065,1728798431720,-500.0,0.00010999,2]
[340189066,1728798431741,-500.0,0.00010999,2]
[340189067,1728798431763,-586.92811881,0.00010999,2]
[340189068,1728798431787,-545520.47522042,0.00011,2]
[340189069,1728798431810,-2348029.70292058,0.00011,2]
[340189070,1728798431834,-2137204.06348175,0.00011,2]
[340189071,1728798431858,-2636343.1589502,0.00011,2]
[340189072,1728798431880,-200.0,0.00011,2]
[340189073,1728798431903,-1329366.61831005,0.00011,2]
[340189074,1728798431928,-416229.62176524,0.00011,2]
[340189094,1728798632508,-250.0,0.00010409,2]
[340189095,1728798632518,-243.5,0.00010507,2]
[340189096,1728798632528,-713.02,0.00010572,2]
[340189097,1728798632539,-800.0,0.00010618,2]
[340189098,1728798632549,-5234.37300446,0.00010691,2]
[340189099,1728798632558,-498.0,0.00010691,2]
[340189100,1728798632567,-1043.67309921,0.0001078,2]
[340189101,1728798632577,-401.046,0.0001078,2]
[340189102,1728798632587,-1000.0,0.0001078,2]
[340189103,1728798632598,-1727.4063,0.0001078,2]
[340189104,1728798632607,-1000.0,0.0001078,2]
[340189105,1728798632617,-1083.9308,0.0001078,2]
[340189106,1728798632628,-7500.0,0.00010858,2]
[340189107,1728798632638,-150.0,0.0001089,2]
[340189108,1728798632647,-151.15865,0.0001089,2]
[340189109,1728798632656,-464.13554296,0.000109,2]
[340189110,1728798632666,-500.0,0.000109,2]
[340189111,1728798632675,-71387.1969,0.000109,2]
[340189112,1728798632684,-279.62222309,0.000109,2]
[340189113,1728798632693,-507.95107295,0.00010958,2]
[340189114,1728798632702,-500.0,0.00010958,2]
[340189115,1728798632711,-536.01965063,0.00010958,2]
[340189116,1728798632721,-8940.01,0.00010959,2]
[340189117,1728798632733,-634.3,0.00010973,2]
[340189118,1728798632742,-500.0,0.00010973,2]
[340189119,1728798632751,-3009.404,0.0001099,2]
[340189121,1728798632760,-150.0,0.0001099,2]
[340189123,1728798632768,-150.0,0.0001099,2]
[340189124,1728798632781,-3973.345,0.0001099,2]
[340189125,1728798632790,-1083.0,0.0001099,2]
[340189126,1728798632799,-164.0,0.0001099,2]
[340189127,1728798632808,-150.47,0.0001099,2]
[340189128,1728798632819,-165.141,0.0001099,2]
[340189129,1728798632828,-285.663,0.0001099,2]
[340189130,1728798632838,-150.0,0.0001099,2]
[340189131,1728798632846,-156.787,0.0001099,2]
[340189132,1728798632858,-200.0,0.0001099,2]
[340189133,1728798632868,-152.031,0.0001099,2]
[340189134,1728798632877,-250.8471115,0.00010994,2]
[340189135,1728798632886,-5899.558522,0.00010994,2]
[340189136,1728798632895,-306.1247151,0.00010994,2]
[340189137,1728798632904,-150.0,0.00010999,2]
[340189138,1728798632914,-500.0,0.00010999,2]
[340189139,1728798632923,-643.24997117,0.00010999,2]
[340189140,1728798632932,-237325.03622113,0.00011,2]
[340189141,1728798632946,-12814.55283526,0.00011,2]
[340189142,1728798632958,-3680.83258056,0.00011,2]
[340189143,1728798632969,-328.1431498,0.00011,2]
[340189144,1728798632981,-2991.88164217,0.00011,2]
[340189145,1728798632992,-899.999998,0.00011,2]
[340189146,1728798633003,-5651.23055257,0.00011,2]
[340189147,1728798633015,-2399.99999998,0.00011,2]
[340189148,1728798638474,-500.0,0.00010973,2]
[340189149,1728798638484,-250.0,0.0001099,2]